fUST/lending_fUST_20240211
["ID","MTS","AMOUNT","RATE_DAILY","PERIOD"]
[313705466,1707600638977,-4250.53361744,0.0002169,2]
[313705468,1707600638986,-262.8706451,0.00021918,2]
[313705470,1707600638995,-4421.75610242,0.00022189,3]
[313705472,1707600639004,-1031.74309057,0.00022189,3]
[313705474,1707600639013,-181.94629319,0.00022189,3]
[313705476,1707600639022,-200.0,0.00022215,7]
[313705478,1707600639033,-348.0,0.00022215,7]
[313705480,1707600639042,-741.82846738,0.00023,2]
[313705482,1707600639053,-169.48012,0.0002332,2]
[313705483,1707600639062,-314.39132538,0.00023621,2]
[313705486,1707600639072,-154.87609912,0.000238,2]
[313705488,1707600639081,-593.97876573,0.00024,2]
[313705490,1707600639090,-200.0,0.00024437,7]
[313705492,1707600639100,-200.0,0.00024437,7]
[313705494,1707600639109,-368.0,0.00024437,7]
[313705496,1707600639120,-319.00198815,0.000249,2]
[313705498,1707600639128,-7410.35268892,0.00025,2]
[313705500,1707600639138,-4740.91143851,0.00025,2]
[313705502,1707600639148,-335.73756915,0.00025,2]
[313705504,1707600639157,-1556.34990313,0.00025,2]
[313705506,1707600639166,-239.35951133,0.00025,2]
[313705508,1707600639176,-154.90705577,0.00025088,2]
[313705510,1707600639185,-34556.31581678,0.0002538,2]
[313705512,1707600639194,-12723.42901826,0.00025382,2]
[313705515,1707600639203,-1402.20678101,0.000259,2]
[313705516,1707600639212,-280.60910696,0.00026,2]
[313705519,1707600639221,-155.40286838,0.00026,2]
[313705522,1707600639233,-314.39132538,0.000264,2]
[313705525,1707600639243,-262906.49906036,0.00026498,2]
[313705528,1707600639258,-251.48880645,0.00026498,2]
[313705885,1707600642827,-10022.27499999,0.00026498,2]
[313706172,1707600645809,-261.17070193,0.00026497,2]
[313706174,1707600645818,-557.10592692,0.00026497,2]
[313706176,1707600645828,-2819.7371332,0.00026498,2]
[313706177,1707600645837,-280.05218316,0.00026499,2]
[313706179,1707600645846,-500.0,0.00026499,2]
[313706181,1707600645855,-439.82460265,0.00026499,2]
[313706183,1707600645864,-500.0,0.00026499,2]
[313706185,1707600645873,-170.8214653,0.00026499,2]
[313706186,1707600645882,-500.0,0.00026499,2]
[313706188,1707600645891,-174.77101652,0.00026499,2]
[313706190,1707600645900,-500.0,0.00026499,2]
[313706192,1707600645910,-500.0,0.00026499,2]
[313706194,1707600645919,-500.0,0.00026499,2]
[313706195,1707600645928,-445.88419592,0.00026499,2]
[313706197,1707600645937,-500.0,0.00026499,2]
[313706199,1707600645947,-509.0963944,0.00026499,2]
[313706201,1707600645956,-500.0,0.00026499,2]
[313706203,1707600645965,-361.95069611,0.00026499,2]
[313706204,1707600645974,-500.0,0.00026499,2]
[313706206,1707600645983,-500.0,0.00026499,2]
[313706208,1707600645992,-500.0,0.00026499,2]
[313706210,1707600646001,-500.0,0.00026499,2]
[313706212,1707600646010,-2724.97338139,0.000265,3]
[313706220,1707600646089,-15835.95888698,0.000265,3]
[313711662,1707601649195,-160.66729112,0.00016765,2]
[313711664,1707601654108,-1746.49526169,0.00016764,2]
[313711665,1707601654131,-154.8915759,0.00016764,2]
[313711666,1707601654154,-906.67733416,0.00016764,2]
[313711667,1707601654173,-363.18255207,0.00016765,2]
[313711668,1707601654193,-901.44786363,0.00016766,2]
[313711726,1707601831849,-1223.94288681,0.00015745,2]
[313711736,1707601831939,-6762.03014139,0.00015745,2]
[313711738,1707601831948,-718.43159895,0.00015745,2]
[313711740,1707601831956,-212.68328114,0.00015745,2]
[313711742,1707601831965,-763.88031577,0.00015746,2]
[313711744,1707601831974,-155.46374415,0.00015746,2]
[313711746,1707601831982,-640.71697919,0.00015746,2]
[313711748,1707601831991,-1860.75293793,0.00015746,2]
[313711750,1707601832000,-214.1569826,0.00015747,2]
[313711752,1707601832009,-609.9899794,0.00015747,2]
[313711753,1707601832018,-535.69531343,0.00015747,2]
[313711755,1707601832027,-981.1601613,0.00015748,2]
[313711756,1707601832036,-1110.40225174,0.00015748,2]
[313711759,1707601832048,-1496.86677386,0.00015748,2]
[313711761,1707601832058,-154.8915759,0.00015748,2]
[313711763,1707601832066,-500.0,0.00015748,2]
[313711765,1707601832076,-37080.86042547,0.00015748,2]
[313711767,1707601832085,-2045.76741728,0.00015749,2]
[313711769,1707601832093,-821.15351128,0.00015749,2]
[313711771,1707601832103,-1018.7537034,0.00015749,2]
[313711773,1707601832111,-2468.3658084,0.00015749,2]
[313711775,1707601832120,-228.90420585,0.00015749,2]
[313711776,1707601832129,-651.85853467,0.0001575,2]
[313711778,1707601832138,-1746.49526169,0.0001575,2]
[313711780,1707601832147,-18964.89870394,0.0001575,2]
[313711782,1707601832157,-590.3509011,0.00015751,2]
[313711784,1707601832166,-181.61100377,0.00015751,2]
[313711786,1707601832176,-1948.0276469,0.00015751,2]
[313711788,1707601832186,-7267.061639,0.00015751,2]
[313711791,1707601832198,-1273.39200881,0.00015751,2]
[313711888,1707601838201,-154.8915759,0.00015744,2]
[313711890,1707601838210,-1297.90163565,0.00015744,2]
[313711892,1707601838219,-154.8915759,0.00015744,2]
[313711894,1707601838228,-163.17551542,0.00015744,2]
[313711896,1707601838237,-678.94138998,0.00015744,2]
[313711898,1707601838246,-2535.91832299,0.00015751,2]
[313711900,1707601838257,-325.33824744,0.00015751,2]
[313711902,1707601838269,-8527.49100069,0.00015751,2]
[313711904,1707601838278,-20940.57997335,0.00015752,2]
[313711906,1707601838287,-20966.36090034,0.00015752,2]
[313711908,1707601838298,-454.5514813,0.00015753,2]
[313711910,1707601838307,-454.5514813,0.00015753,2]
[313711912,1707601838316,-454.5514813,0.00015753,2]
[313711914,1707601838325,-454.5514813,0.00015753,2]
[313711916,1707601838334,-226.527789,0.00015754,2]
[313711917,1707601838343,-212.68940984,0.00016182,2]
[313711919,1707601838353,-154.8915759,0.00016752,2]
[313711921,1707601838363,-247.39952375,0.00016759,2]
[313711923,1707601838372,-83655.16176487,0.0001676,2]
[313711925,1707601838381,-539.66599243,0.00016764,2]
[313711927,1707601838390,-155.09757579,0.00016764,2]
[313711929,1707601838399,-906.35745615,0.00016765,2]
[313711931,1707601838409,-154825.4281879,0.00016766,2]
[313711933,1707601838418,-24900.0,0.00016767,2]
[313711935,1707601838428,-200.0,0.00017586,2]
[313711937,1707601838437,-224.66178882,0.00017774,2]
[313711939,1707601838446,-2115.91943208,0.00017884,2]
[313711941,1707601838455,-185.07172042,0.00017887,2]
[313711943,1707601838464,-5854.11087692,0.00018904,2]
[313711945,1707601838473,-6877.089753,0.00018904,2]
[313711947,1707601838482,-224.66178879,0.00018937,2]
[313711949,1707601838491,-168.363458,0.00019178,2]
[313711950,1707601838501,-280.0,0.00019345,2]
[313711952,1707601838510,-1115.39137616,0.000195,2]
[313711954,1707601838520,-364.58917028,0.0001995,2]
[313711956,1707601838529,-154.8915759,0.00019989,2]
[313711958,1707601838538,-154.8915759,0.00019989,2]
[313711960,1707601838549,-154.8915759,0.00019989,2]
[313711962,1707601838559,-1193.74704797,0.00019993,2]
[313711964,1707601838570,-324.18448095,0.0002,2]
[313711966,1707601838579,-154.90705577,0.0002,2]
[313711968,1707601838589,-73912.554848,0.0002,2]
[313711970,1707601838598,-224.66178879,0.000201,2]
[313711972,1707601838608,-319.00198815,0.00020722,2]
[313711974,1707601838618,-1544.99070249,0.00020821,2]
[313711976,1707601838627,-500.0,0.00020822,2]
[313711977,1707601838636,-499.049988,0.00020822,2]
[313711979,1707601838646,-500.0,0.00020822,2]
[313711981,1707601838656,-500.0,0.00020822,2]
[313711983,1707601838665,-500.0,0.00020822,2]
[313711985,1707601838675,-500.0,0.00020822,2]
[313711987,1707601838684,-500.0,0.00020822,2]
[313711989,1707601838693,-202.7,0.00020822,2]
[313711991,1707601838703,-500.0,0.00020822,2]
[313711993,1707601838712,-500.0,0.00020822,2]
[313711995,1707601838721,-474.79692002,0.00020822,2]
[313711997,1707601838730,-500.0,0.00020822,2]
[313711999,1707601838740,-500.0,0.00020822,2]
[313712001,1707601838748,-500.0,0.00020822,2]
[313712003,1707601838758,-500.0,0.00020822,2]
[313712005,1707601838767,-500.0,0.00020822,2]
[313712007,1707601838776,-500.0,0.00020822,2]
[313712009,1707601838785,-500.0,0.00020822,2]
[313712011,1707601838795,-500.0,0.00020822,2]
[313712012,1707601838805,-500.0,0.00020822,2]
[313712014,1707601838814,-500.0,0.00020822,2]
[313712016,1707601838824,-500.0,0.00020822,2]
[313712018,1707601838833,-500.0,0.00020822,2]
[313712020,1707601838842,-500.0,0.00020822,2]
[313712022,1707601838851,-500.0,0.00020822,2]
[313712024,1707601838860,-500.0,0.00020822,2]
[313712026,1707601838870,-500.0,0.00020822,2]
[313712028,1707601838879,-500.0,0.00020822,2]
[313712030,1707601838888,-500.0,0.00020822,2]
[313712032,1707601838897,-500.0,0.00020822,2]
[313712034,1707601838906,-500.0,0.00020822,2]
[313712036,1707601838915,-500.0,0.00020822,2]
[313712038,1707601838925,-500.0,0.00020822,2]
[313712040,1707601838934,-500.0,0.00020822,2]
[313712042,1707601838943,-500.0,0.00020822,2]
[313712044,1707601838951,-500.0,0.00020822,2]
[313712046,1707601838961,-500.0,0.00020822,2]
[313712047,1707601838970,-500.0,0.00020822,2]
[313712049,1707601838979,-500.0,0.00020822,2]
[313712051,1707601838988,-321.09721462,0.00020822,2]
[313712053,1707601838997,-500.0,0.00020822,2]
[313712055,1707601839006,-500.0,0.00020822,2]
[313712056,1707601839014,-518.59416008,0.00020822,2]
[313712057,1707601839023,-500.0,0.00020822,2]
[313712058,1707601839031,-500.0,0.00020822,2]
[313712059,1707601839040,-500.0,0.00020822,2]
[313712060,1707601839050,-500.0,0.00020822,2]
[313712061,1707601839059,-500.0,0.00020822,2]
[313712062,1707601839068,-500.0,0.00020822,2]
[313712063,1707601839077,-500.0,0.00020822,2]
[313712064,1707601839086,-413.63058943,0.00020822,2]
[313712065,1707601839095,-500.0,0.00020822,2]
[313712066,1707601839103,-500.0,0.00020822,2]
[313712067,1707601839112,-500.0,0.00020822,2]
[313712068,1707601839121,-500.0,0.00020822,2]
[313712069,1707601839130,-500.0,0.00020822,2]
[313712070,1707601839139,-500.0,0.00020822,2]
[313712071,1707601839147,-500.0,0.00020822,2]
[313712072,1707601839287,-498.35084476,0.00020822,2]
[313712073,1707601839298,-500.0,0.00020822,2]
[313712075,1707601839308,-500.0,0.00020822,2]
[313712077,1707601839319,-500.0,0.00020822,2]
[313712079,1707601839328,-500.0,0.00020822,2]
[313712081,1707601839337,-500.0,0.00020822,2]
[313712083,1707601839347,-500.0,0.00020822,2]
[313712085,1707601839357,-500.0,0.00020822,2]
[313712088,1707601839365,-500.0,0.00020822,2]
[313712090,1707601839374,-500.0,0.00020822,2]
[313712092,1707601839382,-500.0,0.00020822,2]
[313712094,1707601839391,-500.0,0.00020822,2]
[313712096,1707601839400,-500.0,0.00020822,2]
[313712098,1707601839409,-500.0,0.00020822,2]
[313712100,1707601839418,-500.0,0.00020822,2]
[313712102,1707601839427,-564.48972512,0.00020822,2]
[313712104,1707601839436,-500.0,0.00020822,2]
[313712106,1707601839445,-500.0,0.00020822,2]
[313712108,1707601839454,-500.0,0.00020822,2]
[313712110,1707601839464,-500.0,0.00020822,2]
[313712112,1707601839473,-500.0,0.00020822,2]
[313712114,1707601839482,-500.0,0.00020822,2]
[313712116,1707601839491,-500.0,0.00020822,2]
[313712118,1707601839500,-500.0,0.00020822,2]
[313712120,1707601839509,-500.0,0.00020822,2]
[313712122,1707601839518,-500.0,0.00020822,2]
[313712124,1707601839528,-500.0,0.00020822,2]
[313712126,1707601839537,-500.0,0.00020822,2]
[313712128,1707601839547,-500.0,0.00020822,2]
[313712130,1707601839556,-500.0,0.00020822,2]
[313712132,1707601839568,-211.45797696,0.00020822,2]
[313712134,1707601839578,-500.0,0.00020822,2]
[313712136,1707601839587,-622.25288549,0.00020822,2]
[313712138,1707601839596,-500.0,0.00020822,2]
[313712140,1707601839605,-500.0,0.00020822,2]
[313712142,1707601839614,-500.0,0.00020822,2]
[313712144,1707601839623,-500.0,0.00020822,2]
[313712146,1707601839632,-500.0,0.00020822,2]
[313712148,1707601839642,-500.0,0.00020822,2]
[313712150,1707601839651,-500.0,0.00020822,2]
[313712152,1707601839660,-500.0,0.00020822,2]
[313712154,1707601839670,-500.0,0.00020822,2]
[313712155,1707601839679,-500.0,0.00020822,2]
[313712157,1707601839688,-486.10063299,0.00020822,2]
[313712159,1707601839697,-500.0,0.00020822,2]
[313712161,1707601839706,-500.0,0.00020822,2]
[313712163,1707601839715,-500.0,0.00020822,2]
[313712165,1707601839724,-500.0,0.00020822,2]
[313712167,1707601839734,-500.0,0.00020822,2]
[313712169,1707601839743,-500.0,0.00020822,2]
[313712171,1707601839752,-500.0,0.00020822,2]
[313712173,1707601839761,-224.66178879,0.00021262,2]
[313712175,1707601839772,-391.0,0.00021279,7]
[313712177,1707601839782,-5002.35959034,0.00021715,2]
[313712179,1707601839791,-8218.85310965,0.00021735,2]
[313712181,1707601839801,-2655.24356345,0.00021748,2]
[313712183,1707601839810,-1011.36600328,0.00021762,2]
[313712185,1707601839819,-500.0,0.00021917,2]
[313712187,1707601839828,-511.41065011,0.00021917,2]
[313712189,1707601839837,-214.768655,0.00021918,2]
[313712191,1707601839846,-4238.18269788,0.00022189,3]
[313712193,1707601839855,-386.05671285,0.00022189,3]
[313712195,1707601839864,-294.78374016,0.00022189,3]
[313712197,1707601839873,-224.66178879,0.00022425,2]
[313712199,1707601839883,-154.87609912,0.00022525,2]
[313712201,1707601839891,-319.00198807,0.00022853,2]
[313712203,1707601839901,-741.82846738,0.00023,2]
[313712205,1707601839910,-200.0,0.00023407,7]
[313712207,1707601839919,-348.0,0.00023407,7]
[313712210,1707601839928,-19145.40708381,0.00023597,2]
[313712212,1707601839937,-226.527789,0.00023631,2]
[313712214,1707601839946,-199.84055074,0.00023835,2]
[313712216,1707601839955,-158.37942834,0.00023835,2]
[313712217,1707601839965,-155.05116031,0.00023835,2]
[313712219,1707601839974,-155.11478494,0.00023835,2]
[313712221,1707601839983,-223.29993681,0.00023835,2]
[313712223,1707601839992,-313.06031524,0.00023835,2]
[313712225,1707601840001,-261.17070193,0.00023835,2]
[313712227,1707601840010,-161.5844476,0.00023835,2]
[313712229,1707601840019,-220.05024398,0.00023835,2]
[313712231,1707601840028,-167.19218389,0.00023835,2]
[313712233,1707601840037,-4180.75544824,0.00023835,2]
[313712235,1707601840046,-294.63300604,0.00023835,2]
[313712237,1707601840055,-6112.43934485,0.00023836,2]
[313712239,1707601840064,-1316.85878048,0.00023836,2]
[313712361,1707601841131,-895.90031706,0.00023836,2]
[313712363,1707601841140,-593.97876573,0.00024,2]
[313712365,1707601841149,-918.44150096,0.00024398,2]
[313712601,1707601842940,-560.69238563,0.00024398,2]
[313712604,1707601842949,-214.768655,0.00024482,2]
[313712607,1707601842959,-168.130358,0.00024843,2]
[313712610,1707601842967,-215.12924819,0.00024984,2]
[313712940,1707601845980,-875.50482347,0.00024397,5]
[313712942,1707601845990,-155.28900361,0.00024397,2]
[313712944,1707601845999,-219.63878128,0.00024397,2]
[313712946,1707601846008,-642.61328642,0.00024397,2]
[313712948,1707601846018,-1948.0276469,0.00024397,2]
[313712950,1707601846027,-214.08706983,0.00024397,2]
[313712952,1707601846036,-2045.76741728,0.00024397,2]
[313712955,1707601846047,-103.87273988,0.00024984,2]
[313712958,1707601846056,-8031.49950164,0.00024999,2]
[313712960,1707601846068,-2831.71075128,0.00024999,2]
[313712962,1707601846077,-7410.35268892,0.00025,2]
[313712964,1707601846086,-1556.34990313,0.00025,2]
[313712966,1707601846095,-335.73756915,0.00025,2]
[313712968,1707601846104,-4740.91143851,0.00025,2]
[313712970,1707601846114,-239.35951133,0.00025,2]
[313712972,1707601846123,-1000.0,0.00025292,3]
[313712974,1707601846132,-500.0,0.00025381,2]
[313712976,1707601846142,-500.0,0.00025381,2]
[313712978,1707601846151,-500.0,0.00025381,2]
[313712980,1707601846160,-500.0,0.00025381,2]
[313712982,1707601846169,-307.87722185,0.00025381,2]
[313712984,1707601846178,-500.0,0.00025381,2]
[313712986,1707601846188,-500.0,0.00025381,2]
[313712988,1707601846197,-512.11893714,0.00025381,2]
[313712990,1707601846207,-196.03652822,0.00025381,2]
[313712992,1707601846216,-500.0,0.00025381,2]
[313712994,1707601846225,-210.89462194,0.00025381,2]
[313712996,1707601846235,-500.0,0.00025381,2]
[313712998,1707601846243,-303.36548728,0.00025381,2]
[313713000,1707601846253,-306.36747608,0.00025381,2]
[313713002,1707601846262,-500.0,0.00025381,2]
[313713003,1707601846271,-500.0,0.00025381,2]
[313713005,1707601846280,-12723.42901826,0.00025382,2]
[313713007,1707601846290,-200.0,0.00025748,7]
[313713009,1707601846300,-200.0,0.00025748,7]
[313713011,1707601846309,-368.0,0.00025748,7]
[313713013,1707601846319,-1106.98028981,0.00025832,2]
[313713015,1707601846328,-280.60910696,0.00026,2]
[313713017,1707601846337,-155.40286838,0.00026,2]
[313713019,1707601846346,-11001.27332458,0.00026015,2]
[313713021,1707601846356,-175.72920133,0.00026488,2]
[313713023,1707601846365,-34556.31581678,0.00026496,2]
[313713025,1707601846375,-563.21509038,0.00026498,2]
[313713027,1707601846383,-155.08840039,0.00026498,2]
[313713029,1707601846393,-156.20476011,0.00026498,2]
[313713031,1707601846403,-155.91744645,0.00026498,2]
[313713033,1707601846412,-1330.18428289,0.00026498,2]
[313713035,1707601846421,-30372.09374032,0.000265,3]
[313713037,1707601846431,-154.87609912,0.000265,2]
[313713039,1707601846440,-1765.16155758,0.000265,2]
[313713041,1707601846449,-2091.78651726,0.000265,2]
[313713043,1707601846458,-1832.45288719,0.000265,2]
[313713045,1707601846467,-300.0,0.000265,2]
[313713047,1707601846477,-200.0,0.000265,2]
[313713049,1707601846486,-2719.07889388,0.00026597,5]
[313713051,1707601846496,-155.11311357,0.00026597,2]
[313713053,1707601846505,-2720.42581278,0.00026597,2]
[313713055,1707601846514,-2823.1509297,0.00026597,2]
[313713057,1707601846524,-154.90705577,0.00026597,2]
[313713059,1707601846533,-295.90443276,0.00026597,2]
[313713061,1707601846543,-8680.98940855,0.000266,4]
[313713063,1707601846554,-5000.0,0.00026612,2]
[313713064,1707601846564,-5000.0,0.00026616,2]
[313713066,1707601846577,-5000.0,0.0002662,2]
[313713068,1707601846587,-1000.0,0.0002677,3]
[313713070,1707601846598,-1105.59814401,0.00026844,3]
[313713072,1707601846607,-5927.53813965,0.00027,2]
[313713074,1707601846616,-151.0,0.00027014,2]
[313713076,1707601846625,-319.00198807,0.00027115,2]
[313713078,1707601846636,-644.34901449,0.00027124,2]
[313713080,1707601846647,-151.0,0.0002713,2]
[313713082,1707601846657,-374.89289,0.0002713,2]
[313713084,1707601846666,-374.89289,0.0002713,2]
[313713086,1707601846675,-219.976459,0.0002713,2]
[313713088,1707601846685,-86539.48658381,0.0002713,2]
[313716711,1707602459779,226.5277902,0.0001458,2]
[313716716,1707602542287,500.0,0.0003,120]
[313716721,1707602581407,17463.72540044,0.0001456,2]
[313716722,1707602581437,7436.27459956,0.0001456,2]
[313716724,1707602585995,157.0,0.0003,120]
[313716743,1707602827108,-3757.67448716,0.00015532,2]
[313716744,1707602827131,-609.9899794,0.00015533,2]
[313716745,1707602827152,-500.0,0.00015533,2]
[313716746,1707602827174,-651.85853467,0.00015533,2]
[313716747,1707602827195,-1688.81025991,0.00015533,2]
[313716748,1707602827217,-14.28008586,0.00015534,2]
[313716751,1707602834106,-258.3608514,0.00015531,2]
[313716759,1707602951114,-535.69531343,0.00015521,2]
[313716760,1707602951134,-154.8915759,0.00015522,2]
[313716761,1707602951154,-710.7642809,0.00015522,2]
[313716763,1707602968430,-2468.3658084,0.0001552,2]
[313716764,1707602968449,-2607.2690256,0.0001552,2]
[313716765,1707602968469,-590.3509011,0.00015521,2]
[313716766,1707602968488,-2735.71865869,0.00015521,2]
[313716767,1707602974087,-783.64040907,0.00015519,2]
[313716804,1707603032074,-4882.11170487,0.00015514,2]
[313716855,1707603038208,-185.07172042,0.00015513,2]
[313716857,1707603038218,-3841.12213427,0.00015514,2]
[313716858,1707603038229,-2784.8,0.00015514,2]
[313716974,1707603041340,-8820.18551971,0.00015514,2]
[313716981,1707603043134,-256.17,0.00015514,2]
[313716982,1707603043146,-345.12869652,0.00015514,2]
[313716994,1707603046152,-154.8915759,0.00015513,2]
[313716995,1707603046161,-294.68032616,0.00015513,2]
[313716996,1707603046171,-36.84284497,0.00015514,2]
[313716997,1707603046179,-1018.7537034,0.00015514,2]
[313716998,1707603046188,-783.34741645,0.00015515,2]
[313716999,1707603046199,-650.86067534,0.00015515,2]
[313717020,1707603243895,17563.72540044,0.00014423,2]
[313717021,1707603243925,7336.27459956,0.00014423,2]
[313717042,1707603768597,283.41867526,0.00014423,20]
[313717043,1707603784567,283.41867526,0.00014423,20]
[313717044,1707603806571,283.41867526,0.00014423,20]
[313717045,1707603816583,155.51338344,0.00025,30]
[313717046,1707603824576,283.41867526,0.00014423,20]
[313717047,1707603842575,283.41867526,0.00014423,20]
[313717049,1707603858578,283.41867526,0.00014423,20]
[313717050,1707603880579,169.23934471,0.00014423,20]
[313717051,1707603891268,17663.72540044,0.00014288,2]
[313717054,1707603967838,182.12504224,0.0003,120]
[313717055,1707603967857,182.12504224,0.0003,120]
[313717056,1707603967875,182.12504224,0.0003,120]
[313717057,1707603967894,182.12504224,0.0003,120]
[313717060,1707604041101,-166.93718854,0.00014269,2]
[313717061,1707604067213,645.0,0.000255,30]
[313717069,1707604145105,-10825.55348057,0.00014256,2]
[313717070,1707604145125,-2468.3658084,0.00014257,2]
[313717071,1707604145145,-154.8915759,0.00014257,2]
[313717072,1707604145166,-821.15351128,0.00014257,2]
[313717073,1707604145187,-7985.9730282,0.00014258,2]
[313717074,1707604145209,-228.90420585,0.00014258,2]
[313717075,1707604145229,-161.5844476,0.00014258,2]
[313717076,1707604145249,-154.8915759,0.00014258,2]
[313717077,1707604145269,-167.24924809,0.00014258,2]
[313717078,1707604145289,-2045.76741728,0.00014258,2]
[313717079,1707604145310,-535.69531343,0.00014259,2]
[313717080,1707604145328,-3757.67448716,0.00014259,2]
[313717081,1707604145348,-1860.75293793,0.00014259,2]
[313717082,1707604145367,-37080.86042547,0.00014259,2]
[313717083,1707604145387,-377.98925105,0.00014259,2]
[313717087,1707604153095,-906.67733416,0.00014255,2]
[313717088,1707604153118,-640.71697919,0.00014255,2]
[313717089,1707604153141,-243.92245872,0.00014256,2]
[313717090,1707604153162,-1434.56222192,0.00014256,2]
[313717091,1707604153186,-1584.0977029,0.00014259,2]
[313717092,1707604153207,-500.0,0.00014259,2]
[313717093,1707604153228,-609.9899794,0.00014259,2]
[313717094,1707604153249,-651.85853467,0.0001426,2]
[313717095,1707604153271,-4182.18796512,0.0001426,2]
[313717096,1707604153290,-154.8915759,0.0001426,2]
[313717097,1707604153311,-590.3509011,0.0001426,2]
[313717098,1707604153332,-678.94138998,0.00014261,2]
[313717099,1707604153353,-154.8915759,0.00014261,2]
[313717100,1707604153373,-154.8915759,0.00014261,2]
[313717101,1707604153394,-155.46374415,0.00014262,2]
[313717102,1707604153414,-1746.49526169,0.00014262,2]
[313717103,1707604153434,-1297.90163565,0.00014263,2]
[313717104,1707604153459,-195.83328023,0.00014277,2]
[313717105,1707604153480,-7236.27459956,0.00014288,2]
[313717106,1707604153501,-163.83177483,0.00015269,2]
[313717107,1707604155849,149.14337918,0.00014254,2]
[313717108,1707604157094,-6.32036497,0.00014254,2]
[313717114,1707604218908,158.56869746,0.00015321,2]
[313717155,1707604232263,-1688.81025991,0.0001532,2]
[313717157,1707604232272,-601.97785253,0.00015321,2]
[313717159,1707604232281,-830.95280452,0.00015422,2]
[313717161,1707604232291,-13218.3201784,0.00015429,2]
[313717163,1707604232303,-461.57184017,0.00015429,2]
[313717165,1707604232312,-155.07909034,0.00015513,2]
[313717167,1707604232322,-280.24987553,0.00015513,2]
[313717168,1707604232331,-238.06553773,0.00015513,2]
[313717170,1707604232340,-213.46268132,0.00015513,2]
[313717173,1707604232350,-185.07172042,0.00015514,2]
[313717176,1707604232359,-3484.10790629,0.00015518,2]
[313717179,1707604232369,-2604.2027702,0.00015519,2]
[313717180,1707604232379,-200.74354457,0.00015523,2]
[313717183,1707604232388,-364.58917028,0.00015536,2]
[313717184,1707604232397,-154.8915759,0.00015586,2]
[313717185,1707604232406,-154.8915759,0.00015586,2]
[313717187,1707604232415,-154.8915759,0.00015586,2]
[313717189,1707604232424,-247.39952375,0.00015587,2]
[313717190,1707604232434,-19145.40708381,0.00015588,2]
[313717192,1707604232443,-224.66178882,0.00015636,2]
[313717194,1707604232452,-155.05116031,0.00015736,2]
[313717196,1707604232462,-199.84055074,0.00015745,2]
[313717197,1707604232471,-223.29993681,0.00015745,2]
[313717199,1707604232480,-220.05024398,0.00015745,2]
[313717201,1707604232489,-313.06031524,0.00015745,2]
[313717203,1707604232498,-158.37942834,0.00015745,2]
[313717205,1707604232507,-179.284348,0.00016,2]
[313717207,1707604232516,-200.0,0.00016199,2]
[313717208,1707604232524,-261.17070193,0.000165,2]
[313717210,1707604232533,-224.66178879,0.00016702,2]
[313717212,1707604232542,-454.5514813,0.00017767,2]
[313717214,1707604232552,-224.66178879,0.00017768,2]
[313717216,1707604232562,-280.0,0.00017819,2]
[313717217,1707604232571,-1860.75293793,0.00018831,2]
[313717218,1707604232580,-228.90420585,0.00018831,2]
[313717219,1707604232589,-154.8915759,0.00018831,2]
[313717220,1707604232599,-590.3509011,0.00018831,2]
[313717221,1707604232608,-1297.90163565,0.00018831,2]
[313717222,1707604232617,-535.69531343,0.00018832,2]
[313717223,1707604232626,-161.5844476,0.00018832,2]
[313717224,1707604232635,-2468.3658084,0.00018832,2]
[313717225,1707604232644,-287.61429276,0.00018833,2]
[313717226,1707604232653,-224.66178879,0.00018834,2]
[313717227,1707604232663,-1505.49735731,0.00018899,3]
[313717228,1707604232672,-1466.36036576,0.000189,2]
[313717229,1707604232684,-168.246908,0.00019178,2]
[313717230,1707604232693,-168.363458,0.00019178,2]
[313717231,1707604232703,-166.488179,0.00019178,2]
[313717232,1707604232713,-1115.39137616,0.000195,2]
[313717233,1707604232722,-391.0,0.00019601,2]
[313717234,1707604232731,-255.2015905,0.000198,2]